[Event "*** Titled Tuesday Blitz"]
[Site "Chess.com"]
[Date "2019.12.03"]
[Round "10"]
[White "AryanTari"]
[Black "FelixJoseYnojosa"]
[Result "1-0"]
[WhiteElo "2838"]
[BlackElo "2621"]
[TimeControl "180+2"]
[EndTime "15:21:31 PST"]
[Termination "AryanTari won by checkmate"]

1. c4 {[%clk 0:03:01.9]} 1... c5 {[%clk 0:02:58]} 2. Nf3 {[%clk 0:03:01.9]} 2...
Nc6 {[%clk 0:02:58.7]} 3. d4 {[%clk 0:03:02.5]} 3... cxd4 {[%clk 0:03:00.6]} 4.
Nxd4 {[%clk 0:03:04.1]} 4... Nf6 {[%clk 0:03:01.6]} 5. Nc3 {[%clk 0:03:05.2]}
5... e6 {[%clk 0:03:02.5]} 6. Bf4 {[%clk 0:03:04.3]} 6... Bb4 {[%clk 0:02:59.6]}
7. Nb5 {[%clk 0:02:41]} 7... d5 {[%clk 0:02:42.2]} 8. a3 {[%clk 0:02:05.1]} 8...
Bxc3+ {[%clk 0:02:40.5]} 9. bxc3 {[%clk 0:02:07]} 9... O-O {[%clk 0:02:36]} 10.
e3 {[%clk 0:02:00.7]} 10... a6 {[%clk 0:02:32.2]} 11. Nd4 {[%clk 0:01:20.1]}
11... Qa5 {[%clk 0:02:31.4]} 12. Qc2 {[%clk 0:01:21.1]} 12... Ne4 {[%clk
0:02:32.2]} 13. Nb3 {[%clk 0:01:17.8]} 13... Qxc3+ {[%clk 0:02:29.2]} 14. Qxc3
{[%clk 0:01:19.2]} 14... Nxc3 {[%clk 0:02:31.1]} 15. Rc1 {[%clk 0:01:20.4]}
15... Ne4 {[%clk 0:02:31.3]} 16. cxd5 {[%clk 0:01:20.7]} 16... exd5 {[%clk
0:02:33.2]} 17. f3 {[%clk 0:01:17.8]} 17... Nf6 {[%clk 0:02:33.6]} 18. g4 {[%clk
0:01:17.7]} 18... Re8 {[%clk 0:02:32]} 19. Kd2 {[%clk 0:01:15]} 19... Be6 {[%clk
0:02:30.5]} 20. Nc5 {[%clk 0:01:13.8]} 20... Na5 {[%clk 0:02:29.1]} 21. Bc7
{[%clk 0:01:10.1]} 21... Nc4+ {[%clk 0:02:30]} 22. Bxc4 {[%clk 0:01:11.2]} 22...
dxc4 {[%clk 0:02:31.9]} 23. Nxe6 {[%clk 0:01:01.2]} 23... Rxe6 {[%clk
0:02:29.3]} 24. Rxc4 {[%clk 0:01:02.7]} 24... h5 {[%clk 0:02:20.7]} 25. g5
{[%clk 0:00:58.7]} 25... Nd5 {[%clk 0:02:21.5]} 26. e4 {[%clk 0:00:59.9]} 26...
Nxc7 {[%clk 0:02:14]} 27. Rxc7 {[%clk 0:01:01.8]} 27... Rd8+ {[%clk 0:02:14]}
28. Ke3 {[%clk 0:01:03]} 28... Rb6 {[%clk 0:02:14.9]} 29. Rhc1 {[%clk
0:00:57.9]} 29... Rb3+ {[%clk 0:02:08]} 30. R1c3 {[%clk 0:00:58.4]} 30... Rb2
{[%clk 0:02:09.3]} 31. Re7 {[%clk 0:00:55]} 31... Rf8 {[%clk 0:01:15.1]} 32.
Rcc7 {[%clk 0:00:40.8]} 32... g6 {[%clk 0:01:16.2]} 33. e5 {[%clk 0:00:41.3]}
33... Rb3+ {[%clk 0:00:59.7]} 34. Kf2 {[%clk 0:00:38.3]} 34... Rxa3 {[%clk
0:00:53.4]} 35. Rxb7 {[%clk 0:00:39.5]} 35... Ra2+ {[%clk 0:00:35.8]} 36. Kg3
{[%clk 0:00:38.3]} 36... h4+ {[%clk 0:00:37.2]} 37. Kxh4 {[%clk 0:00:38.1]}
37... Rxh2+ {[%clk 0:00:38.7]} 38. Kg3 {[%clk 0:00:39.4]} 38... Re2 {[%clk
0:00:40]} 39. Ra7 {[%clk 0:00:36.4]} 39... Re1 {[%clk 0:00:30.5]} 40. Rxa6
{[%clk 0:00:36.5]} 40... Rg1+ {[%clk 0:00:31.2]} 41. Kf4 {[%clk 0:00:23.5]}
41... Rb8 {[%clk 0:00:32.7]} 42. e6 {[%clk 0:00:24.7]} 42... fxe6 {[%clk
0:00:22.6]} 43. Raa7 {[%clk 0:00:14.6]} 43... Rf8+ {[%clk 0:00:09.9]} 44. Ke3
{[%clk 0:00:15]} 44... Rb8 {[%clk 0:00:08.9]} 45. Rg7+ {[%clk 0:00:12.8]} 45...
Kf8 {[%clk 0:00:09.8]} 46. Rxg6 {[%clk 0:00:12.5]} 46... Rb3+ {[%clk 0:00:10.3]}
47. Kf2 {[%clk 0:00:13.3]} 47... Rbb1 {[%clk 0:00:11.3]} 48. Rf6+ {[%clk
0:00:12.2]} 48... Kg8 {[%clk 0:00:12]} 49. Re7 {[%clk 0:00:08.8]} 49... Rxg5
{[%clk 0:00:11.5]} 50. Rfxe6 {[%clk 0:00:08.4]} 50... Kf8 {[%clk 0:00:12]} 51.
Re8+ {[%clk 0:00:09.3]} 51... Kf7 {[%clk 0:00:13.2]} 52. R8e7+ {[%clk
0:00:10.7]} 52... Kf8 {[%clk 0:00:14.8]} 53. Ra7 {[%clk 0:00:12]} 53... Rb2+
{[%clk 0:00:15.1]} 54. Ke3 {[%clk 0:00:12.7]} 54... Rb3+ {[%clk 0:00:15.7]} 55.
Kf4 {[%clk 0:00:13]} 55... Rc5 {[%clk 0:00:15.7]} 56. Rd6 {[%clk 0:00:09.7]}
56... Rb4+ {[%clk 0:00:15.4]} 57. Kg3 {[%clk 0:00:09.7]} 57... Rg5+ {[%clk
0:00:07.9]} 58. Kf2 {[%clk 0:00:09.1]} 58... Rb8 {[%clk 0:00:09.4]} 59. Rdd7
{[%clk 0:00:07.7]} 59... Kg8 {[%clk 0:00:09.3]} 60. f4 {[%clk 0:00:06.8]} 60...
Rg6 {[%clk 0:00:10.5]} 61. Kf3 {[%clk 0:00:07.6]} 61... Rg1 {[%clk 0:00:11.6]}
62. Ke4 {[%clk 0:00:08.4]} 62... Rb4+ {[%clk 0:00:10.9]} 63. Kf5 {[%clk
0:00:08.8]} 63... Rb5+ {[%clk 0:00:12.5]} 64. Ke6 {[%clk 0:00:09.9]} 64... Rb6+
{[%clk 0:00:13.6]} 65. Ke5 {[%clk 0:00:09.6]} 65... Rb5+ {[%clk 0:00:15]} 66.
Kd6 {[%clk 0:00:07.7]} 66... Rd1+ {[%clk 0:00:15]} 67. Ke6 {[%clk 0:00:09.2]}
67... Re1+ {[%clk 0:00:10.7]} 68. Kf6 {[%clk 0:00:09.4]} 68... Rb6+ {[%clk
0:00:12.1]} 69. Kg5 {[%clk 0:00:10.7]} 69... Rg1+ {[%clk 0:00:12.5]} 70. Kf5
{[%clk 0:00:11.8]} 70... Rb5+ {[%clk 0:00:14]} 71. Ke4 {[%clk 0:00:13.2]} 71...
Rb4+ {[%clk 0:00:15]} 72. Kf3 {[%clk 0:00:14.4]} 72... Rb3+ {[%clk 0:00:15.4]}
73. Kf2 {[%clk 0:00:15.5]} 73... Rgb1 {[%clk 0:00:08.2]} 74. Rd8# {[%clk
0:00:16.6]} 1-0

[Event "*** Titled Tuesday Blitz"]
[Site "Chess.com"]
[Date "2019.12.03"]
[Round "10"]
[White "Firouzja2003"]
[Black "DangerousPlayer1st"]
[Result "0-1"]
[WhiteElo "3135"]
[BlackElo "2843"]
[TimeControl "180+2"]
[EndTime "15:21:33 PST"]
[Termination "DangerousPlayer1st won on time"]

1. d4 {[%clk 0:03:01.9]} 1... Nf6 {[%clk 0:02:56.1]} 2. c4 {[%clk 0:03:03.5]}
2... g6 {[%clk 0:02:57.2]} 3. Nc3 {[%clk 0:03:04.3]} 3... d5 {[%clk 0:02:58.7]}
4. cxd5 {[%clk 0:03:05.5]} 4... Nxd5 {[%clk 0:02:59.7]} 5. e4 {[%clk 0:03:07.4]}
5... Nxc3 {[%clk 0:03:00.3]} 6. bxc3 {[%clk 0:03:09.3]} 6... Bg7 {[%clk
0:03:01.4]} 7. Nf3 {[%clk 0:03:10]} 7... O-O {[%clk 0:03:01.5]} 8. Rb1 {[%clk
0:02:56.9]} 8... c5 {[%clk 0:02:59.8]} 9. Be2 {[%clk 0:02:52.2]} 9... Nc6 {[%clk
0:02:59.5]} 10. d5 {[%clk 0:02:38.5]} 10... Na5 {[%clk 0:02:58.4]} 11. O-O
{[%clk 0:02:32.3]} 11... b6 {[%clk 0:02:56.8]} 12. c4 {[%clk 0:02:26.2]} 12...
Bg4 {[%clk 0:02:57.8]} 13. Qc2 {[%clk 0:02:25]} 13... e5 {[%clk 0:02:53.3]} 14.
Ne1 {[%clk 0:02:06.3]} 14... Bd7 {[%clk 0:02:46.9]} 15. Nd3 {[%clk 0:02:01.5]}
15... Nb7 {[%clk 0:02:43.5]} 16. Bb2 {[%clk 0:02:02.1]} 16... Qe7 {[%clk
0:02:42.4]} 17. f4 {[%clk 0:02:01.7]} 17... f6 {[%clk 0:02:40.1]} 18. fxe5
{[%clk 0:01:50.1]} 18... fxe5 {[%clk 0:02:42]} 19. Rxf8+ {[%clk 0:01:51.8]}
19... Rxf8 {[%clk 0:02:41.3]} 20. Rf1 {[%clk 0:01:53.7]} 20... Nd6 {[%clk
0:02:39.9]} 21. Rxf8+ {[%clk 0:01:53.9]} 21... Kxf8 {[%clk 0:02:41.3]} 22. Ne1
{[%clk 0:01:52.3]} 22... Qg5 {[%clk 0:02:31]} 23. Qd3 {[%clk 0:01:38.7]} 23...
Qh4 {[%clk 0:02:14.2]} 24. Nf3 {[%clk 0:01:31.1]} 24... Qxe4 {[%clk 0:02:12.4]}
25. Qxe4 {[%clk 0:01:23.3]} 25... Nxe4 {[%clk 0:02:14.3]} 26. Nxe5 {[%clk
0:01:22.3]} 26... Bc8 {[%clk 0:02:01.1]} 27. Bd3 {[%clk 0:01:16.8]} 27... Nd6
{[%clk 0:02:00.7]} 28. Kf2 {[%clk 0:01:17.6]} 28... Nf7 {[%clk 0:01:48.3]} 29.
Nxf7 {[%clk 0:01:17.2]} 29... Bxb2 {[%clk 0:01:50.2]} 30. Ng5 {[%clk 0:01:15.9]}
30... h6 {[%clk 0:01:51.4]} 31. Ne4 {[%clk 0:01:16.4]} 31... Ke7 {[%clk
0:01:46]} 32. Kf3 {[%clk 0:01:15]} 32... Be5 {[%clk 0:01:46.9]} 33. h3 {[%clk
0:01:16.2]} 33... a6 {[%clk 0:01:43.8]} 34. Nf2 {[%clk 0:01:14.5]} 34... Kf6
{[%clk 0:01:43.4]} 35. a4 {[%clk 0:01:08.4]} 35... a5 {[%clk 0:01:35.2]} 36.
Ne4+ {[%clk 0:01:02.3]} 36... Ke7 {[%clk 0:01:28]} 37. g4 {[%clk 0:01:04.2]}
37... Bd7 {[%clk 0:01:25.9]} 38. Bc2 {[%clk 0:01:05.1]} 38... g5 {[%clk
0:01:24.5]} 39. Ke2 {[%clk 0:00:52.2]} 39... Be8 {[%clk 0:01:22.4]} 40. Nd2
{[%clk 0:00:51.4]} 40... Kd6 {[%clk 0:01:18.8]} 41. Nf3 {[%clk 0:00:52.4]} 41...
Bf4 {[%clk 0:01:18.1]} 42. Kd3 {[%clk 0:00:52.7]} 42... Bd7 {[%clk 0:01:12.8]}
43. Kc3 {[%clk 0:00:52.4]} 43... Be5+ {[%clk 0:01:09.3]} 44. Kb3 {[%clk
0:00:52.5]} 44... Bf4 {[%clk 0:01:08.1]} 45. Bg6 {[%clk 0:00:47.2]} 45... Be5
{[%clk 0:01:04.1]} 46. Nd2 {[%clk 0:00:46.8]} 46... Bf4 {[%clk 0:01:03.3]} 47.
Ne4+ {[%clk 0:00:47.8]} 47... Ke5 {[%clk 0:01:04.2]} 48. Nc3 {[%clk 0:00:48.6]}
48... Kd4 {[%clk 0:01:01.9]} 49. Ne2+ {[%clk 0:00:43.1]} 49... Ke3 {[%clk
0:01:02.4]} 50. Nc3 {[%clk 0:00:44]} 50... Kd4 {[%clk 0:01:01.7]} 51. Bf7 {[%clk
0:00:44.8]} 51... Be5 {[%clk 0:01:00.2]} 52. Be6 {[%clk 0:00:40.6]} 52... Be8
{[%clk 0:01:01.2]} 53. Bf5 {[%clk 0:00:39.4]} 53... Ke3 {[%clk 0:01:01.4]} 54.
Ne4 {[%clk 0:00:38.3]} 54... Kf4 {[%clk 0:00:54.7]} 55. Nf2 {[%clk 0:00:17.3]}
55... Bd6 {[%clk 0:00:50.2]} 56. Ka3 {[%clk 0:00:13.3]} 56... h5 {[%clk
0:00:48.8]} 57. Ne4 {[%clk 0:00:12.8]} 57... Be5 {[%clk 0:00:50.3]} 58. d6
{[%clk 0:00:07.4]} 58... Bc6 {[%clk 0:00:48.2]} 59. d7 {[%clk 0:00:07.9]} 59...
Bc7 {[%clk 0:00:44.9]} 60. Nf6 {[%clk 0:00:06.7]} 60... h4 {[%clk 0:00:46]} 61.
Nh7 {[%clk 0:00:06.8]} 61... Bd8 {[%clk 0:00:45]} 62. Nf8 {[%clk 0:00:08.2]}
62... Ke5 {[%clk 0:00:44.6]} 63. Ne6 {[%clk 0:00:08.7]} 63... Bxd7 {[%clk
0:00:45.9]} 64. Nxd8 {[%clk 0:00:10.2]} 64... Bxf5 {[%clk 0:00:43.6]} 65. gxf5
{[%clk 0:00:11.3]} 65... g4 {[%clk 0:00:42.4]} 66. Nf7+ {[%clk 0:00:12.2]} 66...
Kf6 {[%clk 0:00:37.9]} 67. Nd6 {[%clk 0:00:07.3]} 67... g3 {[%clk 0:00:28.9]}
68. Ne4+ {[%clk 0:00:08.4]} 68... Kxf5 {[%clk 0:00:30.3]} 69. Nc3 {[%clk
0:00:10.3]} 69... Kf4 {[%clk 0:00:29.9]} 0-1

[Event "*** Titled Tuesday Blitz"]
[Site "Chess.com"]
[Date "2019.12.03"]
[Round "10"]
[White "FrogMist"]
[Black "1g41-0"]
[Result "1/2-1/2"]
[WhiteElo "2288"]
[BlackElo "2379"]
[TimeControl "180+2"]
[EndTime "15:21:49 PST"]
[Termination "Game drawn by stalemate"]

1. e4 {[%clk 0:03:01.9]} 1... e5 {[%clk 0:03:00.8]} 2. Nf3 {[%clk 0:03:00.3]}
2... Nc6 {[%clk 0:03:01.7]} 3. Bb5 {[%clk 0:03:00.8]} 3... Nf6 {[%clk
0:03:00.5]} 4. O-O {[%clk 0:03:00.8]} 4... Nxe4 {[%clk 0:03:00.5]} 5. d4 {[%clk
0:03:02.1]} 5... Nd6 {[%clk 0:03:01.6]} 6. Bxc6 {[%clk 0:03:03.7]} 6... dxc6
{[%clk 0:03:01.5]} 7. dxe5 {[%clk 0:03:05.6]} 7... Nf5 {[%clk 0:03:02.3]} 8.
Qxd8+ {[%clk 0:03:07.5]} 8... Kxd8 {[%clk 0:03:03.6]} 9. Nc3 {[%clk 0:03:07]}
9... Bd7 {[%clk 0:03:03.5]} 10. h3 {[%clk 0:03:03.1]} 10... h6 {[%clk
0:03:02.4]} 11. b3 {[%clk 0:03:03.7]} 11... Kc8 {[%clk 0:03:02.9]} 12. Bb2
{[%clk 0:03:04.5]} 12... b6 {[%clk 0:03:03.1]} 13. Rad1 {[%clk 0:03:04.1]} 13...
Bb4 {[%clk 0:02:58.7]} 14. Ne2 {[%clk 0:03:02.6]} 14... Be7 {[%clk 0:02:56.9]}
15. Rfe1 {[%clk 0:02:55.5]} 15... c5 {[%clk 0:02:57.1]} 16. Nf4 {[%clk
0:02:51.1]} 16... Be6 {[%clk 0:02:46.9]} 17. Re4 {[%clk 0:02:40.1]} 17... Rd8
{[%clk 0:02:44.7]} 18. Rde1 {[%clk 0:02:33.6]} 18... Kb7 {[%clk 0:02:42.2]} 19.
g4 {[%clk 0:02:31.9]} 19... Nh4 {[%clk 0:02:39.2]} 20. Nxh4 {[%clk 0:02:32.4]}
20... Bxh4 {[%clk 0:02:40]} 21. Ng2 {[%clk 0:02:22.6]} 21... Be7 {[%clk
0:02:37.7]} 22. f4 {[%clk 0:02:22.3]} 22... g6 {[%clk 0:02:36.9]} 23. R4e2
{[%clk 0:02:19]} 23... c4 {[%clk 0:02:29.6]} 24. Ne3 {[%clk 0:02:14.7]} 24...
Bc5 {[%clk 0:02:30.4]} 25. Kg2 {[%clk 0:02:14.4]} 25... Bxe3 {[%clk 0:02:30.6]}
26. Rxe3 {[%clk 0:02:16.3]} 26... Rd2+ {[%clk 0:02:30.8]} 27. R1e2 {[%clk
0:02:16.8]} 27... Rad8 {[%clk 0:02:31.4]} 28. Kf3 {[%clk 0:02:16]} 28... c5
{[%clk 0:02:26.1]} 29. Bc3 {[%clk 0:02:07.4]} 29... Rd1 {[%clk 0:02:21.7]} 30.
Re1 {[%clk 0:02:01.2]} 30... R1d7 {[%clk 0:02:09.9]} 31. Kg3 {[%clk 0:01:52.3]}
31... Kc6 {[%clk 0:02:10.4]} 32. Rf3 {[%clk 0:01:52.8]} 32... Bd5 {[%clk
0:02:07.6]} 33. Rf2 {[%clk 0:01:53.9]} 33... a5 {[%clk 0:02:02.5]} 34. f5 {[%clk
0:01:54.8]} 34... gxf5 {[%clk 0:02:03.4]} 35. gxf5 {[%clk 0:01:56.7]} 35... cxb3
{[%clk 0:02:01.7]} 36. axb3 {[%clk 0:01:50.4]} 36... Re8 {[%clk 0:01:59.5]} 37.
Rfe2 {[%clk 0:01:43.3]} 37... Rde7 {[%clk 0:01:57.5]} 38. Kf4 {[%clk 0:01:42.6]}
38... c4 {[%clk 0:01:55.6]} 39. Re3 {[%clk 0:01:33.3]} 39... cxb3 {[%clk
0:01:50.4]} 40. cxb3 {[%clk 0:01:35.2]} 40... Bxb3 {[%clk 0:01:50.7]} 41. Rc1
{[%clk 0:01:25.5]} 41... Kb7 {[%clk 0:01:46.6]} 42. Bxa5 {[%clk 0:01:24.9]}
42... bxa5 {[%clk 0:01:43.3]} 43. Rxb3+ {[%clk 0:01:26]} 43... Ka7 {[%clk
0:01:44.3]} 44. Rb5 {[%clk 0:01:26.3]} 44... Ka6 {[%clk 0:01:45.1]} 45. Rcc5
{[%clk 0:01:26.1]} 45... Rd7 {[%clk 0:01:40.2]} 46. Rxa5+ {[%clk 0:01:27.1]}
46... Kb6 {[%clk 0:01:41.3]} 47. Rab5+ {[%clk 0:01:27.5]} 47... Ka6 {[%clk
0:01:42.3]} 48. Rb4 {[%clk 0:01:22.5]} 48... Rd1 {[%clk 0:01:39.3]} 49. Rc6+
{[%clk 0:00:58.5]} 49... Ka5 {[%clk 0:01:39.2]} 50. Re4 {[%clk 0:01:00]} 50...
Rf1+ {[%clk 0:01:36.3]} 51. Kg4 {[%clk 0:01:00.7]} 51... Rg8+ {[%clk 0:01:36.7]}
52. Kh4 {[%clk 0:00:56.9]} 52... Rxf5 {[%clk 0:01:35.2]} 53. Rxh6 {[%clk
0:00:56.7]} 53... Kb5 {[%clk 0:01:32]} 54. Rf6 {[%clk 0:00:47.8]} 54... Rfg5
{[%clk 0:01:26]} 55. Rxf7 {[%clk 0:00:44]} 55... Rg1 {[%clk 0:01:26.4]} 56. Rh7
{[%clk 0:00:43.1]} 56... Kc6 {[%clk 0:01:25.1]} 57. e6 {[%clk 0:00:43.9]} 57...
Kd5 {[%clk 0:01:25.6]} 58. Re2 {[%clk 0:00:38.4]} 58... Rd1 {[%clk 0:01:25.8]}
59. e7 {[%clk 0:00:32.9]} 59... Re8 {[%clk 0:01:17.7]} 60. Kg5 {[%clk
0:00:26.7]} 60... Kd6 {[%clk 0:01:18.1]} 61. Rh6+ {[%clk 0:00:16.9]} 61... Kd7
{[%clk 0:01:18.8]} 62. Rhe6 {[%clk 0:00:18.3]} 62... Rf1 {[%clk 0:01:13]} 63.
R6e4 {[%clk 0:00:13.5]} 63... Rg8+ {[%clk 0:01:13.2]} 64. Kh4 {[%clk 0:00:12.8]}
64... Re8 {[%clk 0:01:13.6]} 65. Rd4+ {[%clk 0:00:13.3]} 65... Kc7 {[%clk
0:01:14.4]} 66. Rc2+ {[%clk 0:00:14.1]} 66... Kb6 {[%clk 0:01:15]} 67. Rb4+
{[%clk 0:00:15.4]} 67... Ka5 {[%clk 0:01:16.4]} 68. Re4 {[%clk 0:00:15.8]} 68...
Rf7 {[%clk 0:01:12.7]} 69. Rc5+ {[%clk 0:00:16]} 69... Kb6 {[%clk 0:01:13.7]}
70. Rh5 {[%clk 0:00:10.3]} 70... Kc6 {[%clk 0:01:14.3]} 71. Rh6+ {[%clk
0:00:11.1]} 71... Kd7 {[%clk 0:01:15.2]} 72. Rg6 {[%clk 0:00:09.6]} 72... Rfxe7
{[%clk 0:01:06.6]} 73. Rxe7+ {[%clk 0:00:11.5]} 73... Kxe7 {[%clk 0:01:08.4]}
74. Kg5 {[%clk 0:00:11.7]} 74... Kf7 {[%clk 0:01:10.2]} 75. h4 {[%clk 0:00:11]}
75... Re5+ {[%clk 0:01:11.5]} 76. Kh6 {[%clk 0:00:12.2]} 76... Ra5 {[%clk
0:01:11]} 77. h5 {[%clk 0:00:13.5]} 77... Rb5 {[%clk 0:01:12.4]} 78. Ra6 {[%clk
0:00:14.1]} 78... Rc5 {[%clk 0:01:12.5]} 79. Ra7+ {[%clk 0:00:10.9]} 79... Kg8
{[%clk 0:01:14]} 80. Rg7+ {[%clk 0:00:11.7]} 80... Kh8 {[%clk 0:01:14.9]} 81.
Rg6 {[%clk 0:00:10.5]} 81... Rc8 {[%clk 0:01:13.3]} 82. Rd6 {[%clk 0:00:10.4]}
82... Rb8 {[%clk 0:01:14.5]} 83. Kg6 {[%clk 0:00:11.3]} 83... Ra8 {[%clk
0:01:16.1]} 84. h6 {[%clk 0:00:12.7]} 84... Rg8+ {[%clk 0:01:17.7]} 85. Kf7
{[%clk 0:00:13.9]} 85... Ra8 {[%clk 0:01:18.7]} 86. Rg6 {[%clk 0:00:13.4]} 86...
Ra7+ {[%clk 0:01:19.7]} 87. Kf8 {[%clk 0:00:15]} 87... Ra8+ {[%clk 0:01:21.2]}
88. Ke7 {[%clk 0:00:16.3]} 88... Ra7+ {[%clk 0:01:22.9]} 89. Kf6 {[%clk
0:00:17.9]} 89... Ra6+ {[%clk 0:01:23.8]} 90. Kg5 {[%clk 0:00:19.5]} 90... Rxg6+
{[%clk 0:01:25.5]} 91. Kxg6 {[%clk 0:00:21.4]} 91... Kg8 {[%clk 0:01:27.3]} 92.
h7+ {[%clk 0:00:22.2]} 92... Kh8 {[%clk 0:01:29]} 93. Kh6 {[%clk 0:00:23.6]}
1/2-1/2